bitfinex/quotes_BTCUSD_20240828
["timestamp","ask_amount","ask_price","bid_price","bid_amount"]
[1724814289581,0.16150662,59528.0,59527.0,0.29646662]
[1724814289792,0.16150662,59528.0,59527.0,0.34819298]
[1724814291329,0.16150662,59528.0,59527.0,0.29789158]
[1724814293325,0.16150662,59528.0,59527.0,0.34819298]
[1724814295736,0.16150662,59528.0,59527.0,0.29789158]
[1724814300585,0.16150662,59528.0,59527.0,0.34821712]
[1724814300918,0.16150662,59528.0,59527.0,0.29789158]
[1724814301127,0.16150662,59528.0,59527.0,0.37337989]
[1724814301341,0.16150662,59528.0,59527.0,0.74632407]
[1724814302328,0.01840662,59528.0,59527.0,0.74632407]
[1724814302815,0.16200662,59528.0,59527.0,0.24616522]
[1724814308298,0.16200662,59528.0,59527.0,0.14616522]
[1724814308501,0.16200662,59528.0,59527.0,0.0288987]
[1724814309614,0.16200662,59528.0,59527.0,0.0148987]
[1724814309818,0.16200662,59528.0,59527.0,0.0288987]
[1724814310264,0.16200662,59528.0,59527.0,0.0008987]
[1724814311034,0.16200662,59528.0,59527.0,0.0118987]
[1724814311253,0.16200662,59528.0,59527.0,0.02481522]
[1724814311465,0.16200662,59528.0,59527.0,0.01381522]
[1724814311664,0.16200662,59528.0,59527.0,0.02881522]
[1724814311982,0.16200662,59528.0,59527.0,0.0158987]
[1724814312164,0.16200662,59528.0,59527.0,0.0078987]
[1724814312619,0.16200662,59528.0,59527.0,0.0068987]
[1724814312793,0.16200662,59528.0,59527.0,0.0128987]
[1724814313001,0.16200662,59528.0,59527.0,0.0068987]
[1724814313210,0.16200662,59528.0,59527.0,0.0138987]
[1724814314149,0.16200662,59528.0,59527.0,0.0078987]
[1724814314506,0.16200662,59528.0,59527.0,0.0148987]
[1724814327983,0.16620678,59528.0,59527.0,0.0148987]
[1724814328949,0.16620678,59528.0,59527.0,0.0078987]
[1724814329177,0.16620678,59528.0,59527.0,0.0008987]
[1724814329593,0.16720678,59528.0,59527.0,0.0008987]
[1724814331389,0.16620678,59528.0,59527.0,0.0008987]
[1724814331591,0.16920678,59528.0,59527.0,0.0008987]
[1724814331800,0.17570444,59528.0,59527.0,0.0008987]
[1724814332147,0.17270444,59528.0,59527.0,0.0008987]
[1724814332369,0.17370444,59528.0,59527.0,0.0008987]
[1724814332526,0.17167176,59528.0,59527.0,0.0008987]
[1724814334515,0.17067176,59528.0,59527.0,0.0008987]
[1724814334734,0.17167176,59528.0,59527.0,0.0008987]
[1724814335569,0.17067176,59528.0,59527.0,0.0008987]
[1724814335978,0.17367176,59528.0,59527.0,0.0008987]
[1724814336184,0.17167176,59528.0,59527.0,0.0008987]
[1724814336378,0.17148976,59528.0,59527.0,0.0008987]
[1724814336573,0.17348976,59528.0,59527.0,0.0008987]
[1724814336795,0.17448976,59528.0,59527.0,0.0008987]
[1724814341356,0.29675628,59528.0,59527.0,0.0008987]
[1724814342502,0.39675628,59528.0,59527.0,0.0008987]
[1724814346484,0.41975628,59528.0,59527.0,0.0008987]
[1724814348161,0.30248976,59528.0,59527.0,0.0008987]
[1724814349461,0.41975628,59528.0,59527.0,0.0008987]
[1724814350730,0.30248976,59528.0,59527.0,0.0008987]
[1724814354496,0.27448976,59528.0,59527.0,0.0008987]
[1724814356133,0.39675628,59528.0,59527.0,0.0008987]
[1724814360961,0.46949305,59528.0,59527.0,0.0008987]
[1724814361580,0.39675628,59528.0,59527.0,0.0008987]
[1724814362022,0.05,59529.0,59528.0,0.10324372]
[1724814362220,0.16979172,59529.0,59528.0,0.10324372]
[1724814362449,0.17819996,59529.0,59528.0,0.10324372]
[1724814363754,0.17919996,59529.0,59528.0,0.10324372]
[1724814364312,0.18019996,59529.0,59528.0,0.10324372]
[1724814365185,0.32219996,59529.0,59528.0,0.10324372]
[1724814367454,0.4332991,59529.0,59528.0,0.10324372]
[1724814367664,0.34519996,59529.0,59528.0,0.10324372]
[1724814367862,0.44519996,59529.0,59528.0,0.10324372]
[1724814368584,0.44712862,59529.0,59528.0,0.10324372]
[1724814368745,0.3298621,59529.0,59528.0,0.10324372]
[1724814368946,0.3308621,59529.0,59528.0,0.10324372]
[1724814370168,0.3288621,59529.0,59528.0,0.10324372]
[1724814370581,0.45612862,59529.0,59528.0,0.10424372]
[1724814370983,0.44812862,59529.0,59528.0,0.10324372]
[1724814371188,0.44694662,59529.0,59528.0,0.10424372]
[1724814371362,0.44694662,59529.0,59528.0,0.10524372]
[1724814371363,0.45794662,59529.0,59528.0,0.10524372]
[1724814371581,0.45094662,59529.0,59528.0,0.10424372]
[1724814371956,0.45794662,59529.0,59528.0,0.10524372]
[1724814372487,0.45394662,59529.0,59528.0,0.10424372]
[1724814372994,0.57822043,59529.0,59528.0,0.10424372]
[1724814373396,0.45394662,59529.0,59528.0,0.10424372]
[1724814373978,0.45994662,59529.0,59528.0,0.10524372]
[1724814375328,0.4624516,59529.0,59528.0,0.10524372]
[1724814377761,0.48004615,59529.0,59528.0,0.10524372]
[1724814383921,0.48004615,59529.0,59528.0,0.10614352]
[1724814384775,0.22077963,59529.0,59528.0,0.10614352]
[1724814385490,0.19777963,59529.0,59528.0,0.10614352]
[1724814385895,0.09777963,59529.0,59528.0,0.10614352]
[1724814386102,0.19777963,59529.0,59528.0,0.10614352]
[1724814387097,0.09777963,59529.0,59528.0,0.10614352]
[1724814389432,0.21504615,59529.0,59528.0,0.10614352]
[1724814389635,0.31504615,59529.0,59528.0,0.10614352]
[1724814392049,0.48354615,59529.0,59528.0,0.08871311]
[1724814393313,0.48354615,59529.0,59528.0,0.08771311]
[1724814393314,0.47754615,59529.0,59528.0,0.08771311]
[1724814393729,0.49054615,59529.0,59528.0,0.08871311]
[1724814394145,0.47054615,59529.0,59528.0,0.08671311]
[1724814394543,0.49754615,59529.0,59528.0,0.08871311]
[1724814399883,0.23477963,59529.0,59528.0,0.08871311]
[1724814400721,0.20777963,59529.0,59528.0,0.08671311]
[1724814401121,0.23477963,59529.0,59528.0,0.08871311]
[1724814401384,0.22077963,59529.0,59528.0,0.08771311]
[1724814401723,0.23277963,59529.0,59528.0,0.08871311]
[1724814401927,0.23277963,59529.0,59528.0,0.08771311]
[1724814402213,0.22077963,59529.0,59528.0,0.08771311]
[1724814402341,0.23177963,59529.0,59528.0,0.08871311]
[1724814402549,0.23177963,59529.0,59528.0,0.08771311]
[1724814402749,0.21877963,59529.0,59528.0,0.08671311]
[1724814403206,0.22877963,59529.0,59528.0,0.08771311]
[1724814404089,0.24077963,59529.0,59528.0,0.08871311]
[1724814404628,0.24077963,59529.0,59528.0,0.08771311]
[1724814404629,0.21777963,59529.0,59528.0,0.08771311]
[1724814404829,0.22877963,59529.0,59528.0,0.08871311]
[1724814404996,0.22585097,59529.0,59528.0,0.08871311]
[1724814410273,0.20285097,59529.0,59528.0,0.08871311]
[1724814410567,0.20285097,59529.0,59528.0,0.16401311]
[1724814410703,0.20285097,59529.0,59528.0,0.22971311]
[1724814411156,0.10285097,59529.0,59528.0,0.25277429]
[1724814411367,0.05032577,59529.0,59528.0,0.25277429]
[1724814411536,0.05032577,59529.0,59528.0,0.22971311]
[1724814411968,0.10032577,59529.0,59528.0,0.22971311]
[1724814412119,0.10032577,59529.0,59528.0,0.08771311]
[1724814412319,0.08932577,59529.0,59528.0,0.08771311]
[1724814412597,0.17242577,59529.0,59528.0,0.08771311]
[1724814412824,0.23242577,59529.0,59528.0,0.08771311]
[1724814412996,0.24242577,59529.0,59528.0,0.08871311]
[1724814413422,0.36455982,59529.0,59528.0,0.08771311]
[1724814413665,0.23242577,59529.0,59528.0,0.08871311]
[1724814413833,0.23242577,59529.0,59521.0,0.1468]
[1724814413834,0.28061144,59522.0,59521.0,0.1468]
[1724814414108,0.28313664,59522.0,59521.0,0.1468]
[1724814414315,0.28313664,59522.0,59511.0,0.005]
[1724814414316,0.29405629,59522.0,59511.0,0.005]
[1724814414515,0.31164964,59522.0,59511.0,0.005]
[1724814415093,0.3978146,59522.0,59511.0,0.005]
[1724814415315,0.3988146,59522.0,59505.0,0.005]
[1724814415500,0.4594146,59522.0,59508.0,0.005]
[1724814415716,0.4584146,59522.0,59508.0,0.005]
[1724814416043,0.4594146,59522.0,59508.0,0.005]
[1724814416483,0.4584146,59522.0,59508.0,0.005]
[1724814417139,0.4604146,59522.0,59508.0,0.005]
[1724814417361,0.4604146,59522.0,59509.0,0.1513]
[1724814417806,0.10925146,59521.0,59509.0,0.1513]
[1724814418022,0.0025252,59520.0,59509.0,0.1513]
[1724814418678,0.01229248,59519.0,59509.0,0.1513]
[1724814418996,0.0025252,59518.0,59511.0,0.0008998]
[1724814419569,0.01229248,59517.0,59511.0,0.0008998]
[1724814419825,0.0025252,59516.0,59511.0,0.0008998]
[1724814420559,0.01229141,59515.0,59511.0,0.0048998]
[1724814420799,0.0025252,59514.0,59511.0,0.0048998]
[1724814421023,0.0025252,59520.0,59511.0,0.0008998]
[1724814421253,0.001,59516.0,59511.0,0.0068998]
[1724814421718,0.0035252,59515.0,59511.0,0.0138998]
[1724814421940,0.01581661,59515.0,59511.0,0.0138998]
[1724814422162,0.01481661,59515.0,59511.0,0.0068998]
[1724814422647,0.01481661,59515.0,59511.0,0.0008998]
[1724814423095,0.01481661,59515.0,59511.0,0.0028998]
[1724814423312,0.01481661,59515.0,59512.0,0.0789]
[1724814423768,0.0025252,59515.0,59512.0,0.0789]
[1724814424011,0.0025252,59520.0,59512.0,0.0789]
[1724814424219,0.01229141,59514.0,59512.0,0.0789]
[1724814424446,0.002,59515.0,59512.0,0.0789]
[1724814424684,0.003,59515.0,59512.0,0.0859]
[1724814424908,0.001,59515.0,59512.0,0.0789]
[1724814425138,0.001,59515.0,59513.0,0.0618]
[1724814425388,0.001,59515.0,59514.0,0.144]
[1724814425866,0.0025252,59520.0,59514.0,0.1477]
[1724814426107,0.0025252,59520.0,59515.0,0.0635]
[1724814426337,0.0025252,59520.0,59516.0,0.0832]
[1724814426338,0.0122846,59519.0,59516.0,0.0832]
[1724814426570,0.0025252,59518.0,59516.0,0.0832]
[1724814426814,0.01481287,59518.0,59516.0,0.0822]
[1724814427732,0.01481287,59518.0,59516.0,0.0812]
[1724814428408,0.01481287,59518.0,59516.0,0.0852]
[1724814429356,0.01481287,59518.0,59517.0,0.0603]
[1724814429580,0.01228767,59518.0,59517.0,0.0603]
[1724814429822,0.0025252,59521.0,59517.0,0.07525]
[1724814430054,0.01228767,59518.0,59517.0,0.07525]
[1724814430290,0.0025252,59521.0,59517.0,0.0603]
[1724814430543,0.01228767,59518.0,59517.0,0.0603]
[1724814430781,0.0025252,59521.0,59517.0,0.1391]
[1724814431004,0.0025252,59521.0,59517.0,0.1471]
[1724814431213,0.01229315,59520.0,59517.0,0.1431]
[1724814431436,0.0025252,59519.0,59517.0,0.1431]
[1724814431697,0.0025252,59519.0,59517.0,0.1441]
[1724814431943,0.0025252,59519.0,59517.0,0.1431]
[1724814432163,0.01229315,59518.0,59517.0,0.1451]
[1724814432379,0.01229315,59518.0,59517.0,0.1391]
[1724814432596,0.01229315,59518.0,59517.0,0.1411]
[1724814433301,0.01229315,59518.0,59517.0,0.1391]
[1724814433730,0.01229315,59518.0,59517.0,0.1441]
[1724814433942,0.01229315,59518.0,59517.0,0.1481]
[1724814434857,0.01229315,59518.0,59517.0,0.1441]
[1724814435028,0.01229315,59518.0,59517.0,0.1491]
[1724814435610,0.01229315,59518.0,59517.0,0.29870968]
[1724814435855,0.01759335,59522.0,59520.0,0.005]
[1724814436618,0.0025252,59521.0,59517.0,0.005]
[1724814436797,0.001,59518.0,59517.0,0.006]
[1724814437421,0.01482134,59518.0,59516.0,0.0008998]
[1724814437867,0.01482134,59518.0,59517.0,0.003]
[1724814438056,0.01482134,59518.0,59516.0,0.0008998]
[1724814438283,0.0654,59517.0,59516.0,0.0008998]
[1724814438465,0.1408,59517.0,59516.0,0.0008998]
[1724814438615,0.1433252,59517.0,59516.0,0.0008998]
[1724814438963,0.15562134,59517.0,59516.0,0.0008998]
[1724814440048,0.15662134,59517.0,59516.0,0.0078998]
[1724814440607,0.15762134,59517.0,59516.0,0.0148998]
[1724814442647,0.01682134,59517.0,59516.0,0.0148998]
[1724814444311,0.01429614,59517.0,59516.0,0.0148998]
[1724814444502,0.01429614,59517.0,59516.0,0.03074978]
[1724814444709,0.01429614,59517.0,59516.0,0.0148998]
[1724814445274,0.01682134,59517.0,59516.0,0.0148998]
[1724814449300,0.01429614,59517.0,59516.0,0.0148998]
[1724814449705,0.01429614,59517.0,59516.0,0.13227225]
[1724814450081,0.01429614,59517.0,59516.0,0.28117225]
[1724814452141,0.002,59517.0,59516.0,0.30978948]
[1724814456451,0.002,59517.0,59516.0,0.31478948]
[1724814457191,0.002818,59517.0,59516.0,0.31478948]
[1724814458428,0.002818,59517.0,59516.0,5.31478948]
[1724814459465,0.002818,59517.0,59516.0,5.28617225]
[1724814483881,0.002818,59517.0,59516.0,5.22037225]
[1724814487385,0.002818,59517.0,59516.0,5.13727225]
[1724814487841,0.000818,59517.0,59516.0,5.12327225]
[1724814488391,0.002818,59517.0,59516.0,5.13727225]
[1724814488645,0.002818,59517.0,59516.0,5.13027225]
[1724814488834,0.003818,59517.0,59516.0,5.14127225]
[1724814489042,0.002818,59517.0,59516.0,5.30282389]
[1724814489177,0.002818,59517.0,59516.0,5.31382389]
[1724814489374,0.003818,59517.0,59516.0,5.31382389]
[1724814494656,0.083718,59517.0,59516.0,5.14527225]
[1724814499057,0.003818,59517.0,59516.0,5.14527225]
[1724814501359,0.003818,59517.0,59516.0,5.22747225]
[1724814502155,0.003818,59517.0,59516.0,5.14527225]
[1724814504817,0.003818,59517.0,59516.0,5.28797225]
[1724814505005,0.003818,59517.0,59516.0,5.45652389]
[1724814506716,0.003818,59517.0,59516.0,5.14527225]
[1724814511122,0.003818,59517.0,59516.0,5.14027225]
[1724814515544,0.003818,59517.0,59516.0,5.14117205]
[1724814518641,0.003818,59517.0,59516.0,5.20197205]
[1724814519006,0.003818,59517.0,59516.0,5.30197205]
[1724814519175,0.003818,59517.0,59516.0,5.47052369]
[1724814523043,0.00355944,59517.0,59516.0,5.47052369]
[1724814523447,0.00355944,59517.0,59516.0,5.40972369]
[1724814534643,0.07955944,59517.0,59516.0,5.40972369]
[1724814535246,0.07955944,59517.0,59516.0,5.24117205]
[1724814536550,0.14015944,59517.0,59516.0,5.24117205]
[1724814538158,0.07955944,59517.0,59516.0,5.24117205]
[1724814538363,0.07955944,59517.0,59516.0,5.1278998]
[1724814538562,0.000818,59518.0,59516.0,5.38217225]
[1724814538801,0.000818,59518.0,59517.0,0.27355164]
[1724814538802,0.062018,59518.0,59517.0,0.27355164]
[1724814538965,0.000818,59518.0,59517.0,0.39092409]
[1724814539350,0.000818,59518.0,59517.0,0.9836916]
[1724814539554,0.000818,59518.0,59517.0,0.56891409]
[1724814539889,0.000818,59518.0,59517.0,1.01737445]
[1724814540110,0.000818,59518.0,59517.0,0.6443878]
[1724814540340,0.000818,59518.0,59517.0,0.56891409]
[1724814540768,0.000818,59518.0,59517.0,0.61920576]
[1724814540975,0.000818,59518.0,59517.0,0.61920523]
[1724814541617,0.000818,59518.0,59517.0,0.55600523]
[1724814542032,0.000818,59518.0,59517.0,0.63040523]
[1724814542234,0.000818,59518.0,59517.0,0.58011409]
[1724814542610,0.000818,59518.0,59517.0,0.63039033]
[1724814543215,0.000818,59518.0,59517.0,0.64439033]
[1724814544155,0.000818,59518.0,59517.0,0.34638019]
[1724814544342,0.000818,59518.0,59517.0,0.46376264]
[1724814544540,0.000818,59518.0,59517.0,0.43006264]
[1724814545763,0.000818,59518.0,59517.0,0.31269019]
[1724814545964,0.000818,59518.0,59517.0,0.43342262]
[1724814546393,0.000818,59518.0,59517.0,0.34975017]
[1724814546609,0.000818,59518.0,59517.0,0.46712262]
[1724814548629,0.000818,59518.0,59517.0,0.60422262]
[1724814549006,0.000818,59518.0,59517.0,1.05265227]
[1724814550511,0.000818,59518.0,59517.0,1.05264899]
[1724814550720,0.000818,59518.0,59517.0,0.79481656]
[1724814550895,0.000818,59518.0,59517.0,0.46376264]
[1724814551567,0.000818,59518.0,59517.0,0.44976264]
[1724814551805,0.000818,59529.0,59528.0,0.005]
[1724814552016,0.000818,59529.0,59528.0,0.14393161]
[1724814552199,0.144218,59529.0,59528.0,0.24057245]
[1724814552628,0.15680915,59529.0,59528.0,0.24057245]
[1724814553170,0.15680915,59529.0,59528.0,0.105]
[1724814553381,0.15680915,59529.0,59528.0,0.005]
[1724814554208,0.15680915,59529.0,59528.0,0.014]
[1724814554409,0.15680915,59529.0,59528.0,0.005]
[1724814554623,0.15680915,59529.0,59528.0,0.13537245]
[1724814554830,0.15680915,59529.0,59528.0,0.14837245]
[1724814555416,0.15680915,59529.0,59528.0,0.16320969]
[1724814556069,0.15680915,59529.0,59528.0,0.14837245]
[1724814556929,0.15680915,59529.0,59528.0,0.031]
[1724814558034,0.15680915,59529.0,59528.0,0.026]
[1724814558251,0.15680915,59529.0,59528.0,0.031]
[1724814559610,0.15680915,59529.0,59528.0,0.14837245]
[1724814559813,0.15680915,59529.0,59528.0,0.16320969]
[1724814564289,0.15680915,59529.0,59528.0,0.14837245]
[1724814564495,0.15680915,59529.0,59528.0,0.031]
[1724814566301,0.15680915,59529.0,59528.0,0.026]
[1724814567034,0.15680915,59529.0,59528.0,0.031]
[1724814567233,0.15680915,59529.0,59528.0,0.026]
[1724814568875,0.15680915,59529.0,59528.0,0.031]
[1724814569074,0.15680915,59529.0,59528.0,0.026]
[1724814569278,0.15680915,59529.0,59528.0,0.031]
[1724814570501,0.15680915,59529.0,59528.0,0.04583724]
[1724814570994,0.15680915,59529.0,59528.0,0.031]
[1724814572504,0.1552212,59529.0,59528.0,0.031]
[1724814573460,0.1560392,59529.0,59528.0,0.031]
[1724814578182,0.18238583,59529.0,59528.0,0.031]
[1724814582347,0.03975578,59529.0,59528.0,0.031]
[1724814582507,0.03975578,59529.0,59528.0,0.04617322]
[1724814582882,0.03975578,59529.0,59528.0,0.03317322]
[1724814583353,0.03975578,59529.0,59528.0,0.04617322]
[1724814583847,0.03975578,59529.0,59528.0,0.02017322]
[1724814584162,0.03975578,59529.0,59528.0,0.04817322]
[1724814584310,0.03975578,59529.0,59528.0,0.03417322]
[1724814584511,0.18185578,59529.0,59528.0,0.02017322]
[1724814584710,0.18185578,59529.0,59528.0,0.03417322]
[1724814585487,0.18185578,59529.0,59528.0,0.03507302]
[1724814586024,0.18185578,59529.0,59528.0,0.04907302]
[1724814589575,0.03975578,59529.0,59528.0,0.12743263]
[1724814589775,0.03975578,59529.0,59528.0,0.12407302]
[1724814590123,0.02716463,59529.0,59528.0,0.12407302]
[1724814590695,0.02716463,59529.0,59528.0,0.0198998]
[1724814590853,0.17066463,59529.0,59528.0,0.0198998]
[1724814591255,0.18328366,59529.0,59528.0,0.0338998]
[1724814592023,0.01343703,59529.0,59528.0,0.0198998]
[1724814592827,0.01343703,59529.0,59528.0,0.0338998]
[1724814593241,0.01343703,59529.0,59528.0,0.0198998]
[1724814593595,0.03978232,59529.0,59528.0,0.0338998]
[1724814593976,0.03978232,59529.0,59528.0,0.0198998]
[1724814594183,0.03978232,59529.0,59528.0,0.0338998]
[1724814599087,0.03978232,59529.0,59528.0,0.0198998]
[1724814599511,0.03978232,59529.0,59528.0,0.04909658]
[1724814600066,0.03978232,59529.0,59528.0,0.03509658]
[1724814600427,0.03978232,59529.0,59528.0,0.0338998]
[1724814600620,0.17878232,59529.0,59528.0,0.0338998]
[1724814600841,0.16616329,59529.0,59528.0,0.0288998]
[1724814601049,0.17880913,59529.0,59528.0,0.0338998]
[1724814601594,0.17880913,59529.0,59528.0,0.0198998]
[1724814601778,0.17880913,59529.0,59528.0,0.03102702]
[1724814602225,0.17880913,59529.0,59528.0,0.0338998]
[1724814613830,0.17880913,59529.0,59528.0,0.0288998]
[1724814614418,0.16616329,59529.0,59528.0,0.0288998]
[1724814614613,0.1808876,59529.0,59528.0,0.0288998]
[1724814615000,0.1808876,59529.0,59528.0,0.0148998]
[1724814615324,0.1808876,59529.0,59528.0,0.0138998]
[1724814615742,0.1808876,59529.0,59528.0,0.0268998]
[1724814617618,0.1808876,59529.0,59528.0,0.04182702]
[1724814618018,0.1808876,59529.0,59528.0,0.0268998]
[1724814620432,0.19847909,59529.0,59528.0,0.0268998]
[1724814625611,0.05947909,59529.0,59528.0,0.0268998]
[1724814627999,0.14017909,59529.0,59528.0,0.0268998]
[1724814630634,0.20327909,59529.0,59528.0,0.0268998]
[1724814631450,0.05947909,59529.0,59528.0,0.04182702]
[1724814631669,0.1932259,59529.0,59528.0,0.04182702]
[1724814632189,0.1932259,59529.0,59528.0,0.0268998]
[1724814633195,0.1301259,59529.0,59528.0,0.0268998]
[1724814635281,0.0517259,59529.0,59528.0,0.0268998]
[1724814638338,0.0517259,59529.0,59528.0,0.0318998]
[1724814639177,0.0517259,59529.0,59528.0,0.1765998]
[1724814639378,0.0517259,59529.0,59528.0,0.06163295]
[1724814639579,0.0517259,59529.0,59528.0,0.0318998]
[1724814639580,0.04475478,59529.0,59528.0,0.0318998]
[1724814639754,0.05169379,59529.0,59528.0,0.0318998]
[1724814639996,0.05169379,59529.0,59528.0,0.0188998]
[1724814640396,0.04475478,59529.0,59528.0,0.0058998]
[1724814640701,0.04475478,59529.0,59528.0,0.0318998]
[1724814641165,0.05169439,59529.0,59528.0,0.0058998]
[1724814641350,0.05169439,59529.0,59528.0,0.0188998]
[1724814642418,0.05169439,59529.0,59528.0,0.0318998]
[1724814643603,0.04475478,59529.0,59528.0,0.0318998]
[1724814644529,0.19005478,59529.0,59528.0,0.0318998]
[1724814644759,0.19700494,59529.0,59528.0,0.0318998]
[1724814645156,0.19700494,59529.0,59528.0,0.0188998]
[1724814645531,0.05170494,59529.0,59528.0,0.04663856]
[1724814645917,0.05170494,59529.0,59528.0,0.03363856]
[1724814646116,0.05170494,59529.0,59528.0,0.04663856]
[1724814649581,0.19530494,59529.0,59528.0,0.0268998]
[1724814649859,0.19530494,59529.0,59528.0,0.0318998]
[1724814650163,0.19530494,59529.0,59528.0,0.14927225]
[1724814650602,0.18835478,59529.0,59528.0,0.14927225]
[1724814650775,0.18835478,59529.0,59528.0,0.17230544]
[1724814650982,0.19530494,59529.0,59528.0,0.17230544]
[1724814654120,0.19778714,59529.0,59528.0,0.17235544]
[1724814660402,0.19778714,59529.0,59528.0,0.0319498]
[1724814661467,0.19778714,59529.0,59528.0,0.0269498]
[1724814666027,0.05418714,59529.0,59528.0,0.0319498]
[1724814666238,0.04475478,59529.0,59528.0,0.04283602]
[1724814666448,0.04475478,59529.0,59528.0,0.18352282]
[1724814667206,0.04475478,59529.0,59528.0,0.18688204]
[1724814667598,0.04475478,59529.0,59528.0,0.26162282]
[1724814667800,0.04475478,59529.0,59528.0,0.25198188]
[1724814668631,0.04475478,59529.0,59528.0,0.25298188]
[1724814668840,0.04475478,59529.0,59528.0,0.23898188]
[1724814669056,0.04475478,59529.0,59528.0,0.25298188]
[1724814669390,0.04475478,59529.0,59528.0,0.26698188]
[1724814669596,0.04475478,59529.0,59528.0,0.23898188]
[1724814669924,0.04475478,59529.0,59528.0,0.26698188]
[1724814670166,0.04475478,59529.0,59528.0,0.25298188]
[1724814671166,0.04475478,59529.0,59528.0,0.23898188]
[1724814671388,0.04475478,59529.0,59528.0,0.27268188]
[1724814671614,0.04475478,59529.0,59528.0,0.29732282]
[1724814671954,0.04475478,59529.0,59528.0,0.26932282]
[1724814672156,0.04475478,59529.0,59528.0,0.28332282]
[1724814672575,0.04475478,59529.0,59528.0,0.29732282]
[1724814672979,0.04475478,59529.0,59528.0,0.26932282]
[1724814673365,0.04475478,59529.0,59528.0,0.28332282]
[1724814674483,0.04475478,59529.0,59528.0,0.29732282]
[1724814674693,0.04475478,59529.0,59528.0,0.28332282]
[1724814674903,0.04475478,59529.0,59528.0,0.26932282]
[1724814675121,0.04475478,59529.0,59528.0,0.35038182]
[1724814675322,0.00818,59536.0,59533.0,0.1425]
[1724814675440,0.00818,59536.0,59535.0,0.29857245]
[1724814675637,0.00818,59536.0,59535.0,0.39857245]
[1724814676108,0.00818,59536.0,59535.0,0.4486105]
[1724814676259,0.00818,59536.0,59535.0,0.46145627]
[1724814676691,0.00818,59536.0,59535.0,0.52549432]
[1724814678451,0.00204995,59536.0,59535.0,0.52549432]
[1724814678632,0.00204995,59536.0,59535.0,0.55038266]
[1724814680487,0.00204995,59536.0,59535.0,0.57838266]
[1724814680687,0.00859,59539.0,59538.0,0.16107245]
[1724814680903,0.00818,59546.0,59545.0,0.005]
[1724814681070,0.00818,59546.0,59545.0,0.30193032]
[1724814681271,0.0170417,59546.0,59545.0,0.40193032]
[1724814681525,0.00818,59546.0,59545.0,0.40193032]
[1724814681723,0.03451634,59546.0,59545.0,0.45512086]
[1724814682231,0.03451634,59546.0,59545.0,0.47976299]
[1724814682457,0.03451634,59546.0,59545.0,0.49376299]
[1724814682799,0.03451634,59546.0,59545.0,0.47976299]
[1724814683006,0.03451634,59546.0,59545.0,0.49376299]
[1724814683631,0.00020278,59551.0,59550.0,0.3167821]
[1724814683837,0.00020278,59551.0,59550.0,0.44896031]
[1724814684035,0.00020275,59561.0,59558.0,0.1809]
[1724814684301,0.00020271,59573.0,59572.0,0.005]
[1724814684504,0.00020271,59573.0,59572.0,0.12237245]
[1724814684735,0.00020271,59573.0,59572.0,0.38445717]
[1724814684736,0.00916911,59573.0,59572.0,0.38445717]
[1724814684937,0.02652751,59573.0,59572.0,0.40095523]
[1724814685052,0.02652751,59573.0,59572.0,0.46305523]
[1724814685490,0.02652751,59573.0,59572.0,0.20512658]
[1724814685714,0.02652751,59573.0,59572.0,0.25607245]
[1724814685920,0.03549391,59573.0,59572.0,0.28407245]
[1724814686134,0.03549391,59573.0,59572.0,0.1527]
[1724814686338,0.03549391,59573.0,59572.0,0.019]
[1724814686539,0.03549391,59573.0,59572.0,0.033]
[1724814686748,0.11849391,59573.0,59572.0,0.019]
[1724814687433,0.11849391,59573.0,59572.0,0.005]
[1724814687634,0.09216911,59573.0,59572.0,0.005]
[1724814687810,0.09216911,59573.0,59572.0,0.019]
[1724814688589,0.09216911,59573.0,59572.0,0.033]
[1724814688735,0.09216911,59573.0,59572.0,0.019]
[1724814688955,0.09216911,59573.0,59572.0,0.033]
[1724814689120,0.09298711,59573.0,59572.0,0.019]
[1724814689531,0.09298711,59573.0,59572.0,0.033]
[1724814689967,0.09298711,59573.0,59572.0,0.005]
[1724814691090,0.09298711,59573.0,59572.0,0.014]
[1724814691091,0.15518711,59573.0,59572.0,0.014]
[1724814691497,0.1421,59572.0,59567.0,0.005]
[1724814691711,0.0622,59570.0,59567.0,0.005]
[1724814691883,0.0799,59569.0,59567.0,0.005]
[1724814692467,0.00909205,59568.0,59567.0,0.005]
[1724814692667,0.00909205,59568.0,59567.0,0.007]
[1724814692958,0.00909205,59568.0,59567.0,0.012]
[1724814693921,0.00909205,59568.0,59567.0,0.005]
[1724814694285,0.00909205,59568.0,59567.0,0.011]
[1724814694830,0.00909205,59568.0,59567.0,0.005]
[1724814695062,0.00909205,59568.0,59567.0,0.012]
[1724814695546,0.00909205,59568.0,59567.0,0.019]
[1724814696068,0.00909205,59568.0,59567.0,0.012]
[1724814696271,0.00909205,59568.0,59567.0,0.019]
[1724814696473,0.00909205,59568.0,59567.0,0.012]
[1724814696854,0.00909205,59568.0,59567.0,0.019]
[1724814697057,0.0354172,59568.0,59567.0,0.019]
[1724814697256,0.0354172,59568.0,59567.0,0.012]
[1724814697454,0.0354172,59568.0,59567.0,0.019]
[1724814698855,0.0354172,59568.0,59567.0,0.012]
[1724814699059,0.00909205,59568.0,59567.0,0.03995716]
[1724814699315,0.00102071,59573.0,59567.0,0.04795716]
[1724814699611,0.00906643,59572.0,59567.0,0.04460014]
[1724814700138,0.00906643,59572.0,59567.0,0.025]
[1724814700272,0.00906643,59572.0,59567.0,0.013]
[1724814700473,0.00906643,59572.0,59567.0,0.005]
[1724814700675,0.00906643,59572.0,59567.0,0.014]
[1724814700887,0.00906643,59572.0,59567.0,0.017]
[1724814701287,0.00906643,59572.0,59567.0,0.005]
[1724814701488,0.00906643,59572.0,59568.0,0.00335701]
[1724814701712,0.00906643,59572.0,59567.0,0.015]
[1724814701915,0.00906643,59572.0,59571.0,0.005]
[1724814702427,0.03539246,59572.0,59571.0,0.005]
[1724814703015,0.03539246,59572.0,59571.0,0.015]
[1724814704477,0.11099246,59572.0,59571.0,0.015]
[1724814704681,0.11099246,59572.0,59571.0,0.025]
[1724814704891,0.03539246,59572.0,59571.0,0.025]
[1724814705116,0.03539246,59572.0,59571.0,0.03549]
[1724814706277,0.03539246,59572.0,59571.0,0.02549]
[1724814706700,0.02632603,59572.0,59571.0,0.02949]
[1724814706908,0.02632603,59572.0,59571.0,0.01549]
[1724814707124,0.02632603,59572.0,59571.0,0.02649]
[1724814707290,0.02632603,59572.0,59571.0,0.10934681]
[1724814707490,0.02632603,59572.0,59571.0,0.23204681]
[1724814707690,0.00102071,59573.0,59572.0,0.1186]
[1724814707911,0.00102071,59573.0,59572.0,0.54257613]
[1724814709471,0.00818,59577.0,59574.0,0.0337]